bitfinex/quotes_SOLUSD_20240726
["timestamp","ask_amount","ask_price","bid_price","bid_amount"]
[1722000909306,20.0,179.51,179.48,5.5715]
[1722000909490,45.0,179.52,179.48,5.5715]
[1722000909799,45.0,179.52,179.49,5.5712]
[1722000910607,45.0,179.52,179.5,5.571]
[1722000910809,45.0,179.52,179.49,5.5713]
[1722000911392,45.0,179.52,179.5,5.571]
[1722000911592,20.0,179.56,179.51,5.5706]
[1722000911792,20.0,179.56,179.43,16.44538545]
[1722000911793,20.0,179.56,179.52,5.5703]
[1722000912106,20.0,179.58,179.53,5.57]
[1722000912325,45.0,179.57,179.53,5.57]
[1722000912609,20.0,179.61,179.45,30.23]
[1722000912911,20.0,179.61,179.55,5.5694]
[1722000913106,20.0,179.61,179.46,72.61955134]
[1722000913405,35.1708,179.63,179.46,72.61955134]
[1722000913913,20.0,179.61,179.46,27.61955134]
[1722000914289,35.1708,179.63,179.55,5.5692]
[1722000914512,55.1708,179.63,179.55,5.5692]
[1722000914693,45.0,179.62,179.55,5.5692]
[1722000915300,45.0,179.62,179.56,5.5691]
[1722000916302,45.0,179.62,179.57,5.5687]
[1722000916611,65.0,179.62,179.56,5.5691]
[1722000916792,20.0,179.6,179.46,27.61955134]
[1722000916992,45.0,179.62,179.56,5.5691]
[1722000917211,45.0,179.62,179.57,5.5688]
[1722000917419,45.0,179.62,179.56,5.5691]
[1722000917731,20.0,179.6,179.55,5.5694]
[1722000918022,45.0,179.62,179.52,5.5701]
[1722000918023,20.0,179.58,179.52,5.5701]
[1722000918697,20.0,179.56,179.51,5.5707]
[1722000919018,20.0,179.58,179.52,5.5703]
[1722000919308,20.0,179.61,179.47,1.11413074]
[1722000919508,20.0,179.61,179.55,5.5694]
[1722000920090,45.0,179.6,179.47,1.11413074]
[1722000920294,45.0,179.62,179.57,5.5685]
[1722000920711,20.0,179.61,179.56,5.5691]
[1722000921600,45.0,179.62,179.57,5.5688]
[1722000922714,20.0,179.61,179.56,5.5691]
[1722000922911,20.0,179.61,179.55,5.5694]
[1722000923499,20.0,179.54,179.49,5.571]
[1722000923719,20.0,179.54,179.5,5.571]
[1722000923900,20.0,179.56,179.5,5.5709]
[1722000924099,45.0,179.55,179.5,5.5709]
[1722000924402,20.0,179.54,179.49,5.5713]
[1722000924615,20.0,179.52,179.46,6.5056]
[1722000924918,20.0,179.5,179.43,15.3311]
[1722000925500,20.0,179.5,179.46,5.5721]
[1722000926105,20.0,179.5,179.41,6.3016]
[1722000926106,40.0,179.5,179.41,6.3016]
[1722000926906,20.0,179.47,179.43,5.573]
[1722000927115,40.0,179.47,179.36,6.1555]
[1722000927299,20.0,179.45,179.4,5.5738]
[1722000927507,20.0,179.49,179.36,6.1555]
[1722000927811,20.0,179.45,179.4,5.574]
[1722000927997,20.0,179.43,179.4,5.574]
[1722000928216,20.0,179.45,179.4,5.574]
[1722000928515,20.0,179.47,179.36,6.1555]
[1722000928811,45.0,179.46,179.36,6.1555]
[1722000929020,45.0,179.46,179.42,5.5732]
[1722000929206,45.0,179.46,179.4,5.5738]
[1722000929407,20.0,179.43,179.38,5.5745]
[1722000929801,20.0,179.43,179.38,5.5746]
[1722000930003,20.0,179.43,179.36,6.1555]
[1722000930216,20.0,179.45,179.36,6.1555]
[1722000930417,45.0,179.46,179.36,6.1555]
[1722000930723,45.0,179.46,179.41,5.5735]
[1722000930893,65.0,179.46,179.41,5.5735]
[1722000931101,20.0,179.43,179.39,5.5741]
[1722000931410,20.0,179.41,179.31,6.3848]
[1722000931719,20.0,179.41,179.34,5.5759]
[1722000931901,20.0,179.39,179.35,5.5756]
[1722000932214,40.0,179.39,179.33,5.5762]
[1722000932725,20.0,179.37,179.29,0.8131797]
[1722000933103,20.0,179.4,179.29,0.8131797]
[1722000933297,45.0,179.39,179.29,0.8131797]
[1722000933606,20.0,179.38,179.34,5.5759]
[1722000933822,20.0,179.38,179.33,5.5762]
[1722000934021,20.0,179.36,179.32,5.5765]
[1722000934220,20.0,179.38,179.32,5.5765]
[1722000934519,45.0,179.39,179.34,5.5759]
[1722000934727,20.0,179.42,179.29,0.8131797]
[1722000934925,20.0,179.44,179.38,5.5746]
[1722000935319,20.0,179.42,179.37,5.575]
[1722000935521,20.0,179.42,179.29,0.8131797]
[1722000935720,20.0,179.4,179.29,0.8131797]
[1722000935921,20.0,179.38,179.29,0.8131797]
[1722000936226,20.0,179.36,179.32,5.5766]
[1722000936709,20.0,179.36,179.31,5.5769]
[1722000937112,20.0,179.36,179.29,0.8131797]
[1722000937113,20.0,179.36,179.32,5.5765]
[1722000938212,20.0,179.36,179.33,5.5763]
[1722000938425,20.0,179.38,179.33,5.5763]
[1722000938729,45.0,179.37,179.33,5.5763]
[1722000939231,20.0,179.4,179.34,5.5759]
[1722000939438,45.0,179.39,179.34,5.5759]
[1722000939935,45.0,179.39,179.29,0.8131797]
[1722000939936,20.0,179.38,179.33,5.576]
[1722000940114,20.0,179.38,179.34,5.5759]
[1722000940315,45.0,179.39,179.35,5.5756]
[1722000940510,45.0,179.4,179.35,5.5756]
[1722000940722,20.0,179.41,179.29,0.8131797]
[1722000941013,40.0,179.41,179.34,5.5756]
[1722000941213,20.0,179.39,179.33,5.5762]
[1722000941633,20.0,179.41,179.36,5.575]
[1722000941805,46.92,179.44,179.29,0.8131797]
[1722000941806,20.0,179.44,179.29,28.84828359]
[1722000942109,20.0,179.44,179.3,66.11503093]
[1722000942742,20.0,179.42,179.36,5.575]
[1722000942922,20.0,179.44,179.37,5.575]
[1722000943323,20.0,179.44,179.38,5.5747]
[1722000943719,20.0,179.44,179.37,5.575]
[1722000944048,20.0,179.44,179.38,5.5747]
[1722000944344,20.0,179.41,179.3,65.0]
[1722000944544,20.0,179.41,179.36,5.5753]
[1722000944851,20.0,179.41,179.35,5.5756]
[1722000945149,20.0,179.41,179.36,5.5753]
[1722000945513,20.0,179.41,179.37,5.575]
[1722000945746,20.0,179.41,179.35,5.5753]
[1722000946435,20.0,179.41,179.36,5.5753]
[1722000946644,20.0,179.39,179.34,5.5757]
[1722000947015,20.0,179.39,179.34,5.5759]
[1722000947354,20.0,179.39,179.35,5.5756]
[1722000948176,20.0,179.39,179.29,0.8131797]
[1722000948869,20.0,179.39,179.34,5.5757]
[1722000950655,20.0,179.39,179.35,5.5756]
[1722000951576,20.0,179.39,179.34,5.5759]
[1722000951867,20.0,179.37,179.33,5.5762]
[1722000952945,45.0,179.38,179.34,5.5758]
[1722000953336,45.0,179.38,179.35,5.5756]
[1722000953755,20.0,179.39,179.29,0.8131797]
[1722000954243,20.0,179.39,179.36,5.5751]
[1722000954442,20.0,179.39,179.37,5.5749]
[1722000954761,40.0,179.39,179.36,5.5753]
[1722000954979,20.0,179.39,179.37,5.5749]
[1722000955765,20.0,179.42,179.38,5.5744]
[1722000956073,20.0,179.42,179.39,5.5743]
[1722000956236,48.5055,179.47,179.34,15.6189]
[1722000956237,36.3886,179.47,179.34,15.6189]
[1722000956433,20.0,179.49,179.35,46.92]
[1722000956637,20.0,179.49,179.43,5.5731]
[1722000956839,20.0,179.49,179.44,5.5727]
[1722000957064,20.0,179.49,179.35,46.92]
[1722000957275,20.0,179.49,179.36,45.0]
[1722000957468,20.0,179.51,179.36,46.11466066]
[1722000957783,41.4303,179.52,179.38,26.92]
[1722000958080,20.0,179.51,179.46,5.5722]
[1722000958372,20.0,179.51,179.47,5.5718]
[1722000958544,20.0,179.51,179.48,5.5716]
[1722000958745,20.0,179.51,179.47,5.5719]
[1722000959479,20.0,179.53,179.48,5.5715]
[1722000959778,20.0,179.53,179.47,5.5719]
[1722000959972,20.0,179.53,179.48,5.5716]
[1722000960147,20.0,179.55,179.43,15.6447]
[1722000960548,20.0,179.53,179.43,15.6447]
[1722000960762,20.0,179.53,179.48,5.5716]
[1722000960977,20.0,179.53,179.47,5.5719]
[1722000961153,20.0,179.53,179.48,5.5716]
[1722000961772,20.0,179.53,179.43,15.6447]
[1722000961773,20.0,179.49,179.45,5.5723]
[1722000961973,20.0,179.49,179.42,6.5482]
[1722000962279,20.0,179.49,179.43,5.573]
[1722000962448,20.0,179.49,179.44,5.5728]
[1722000962642,45.0,179.52,179.42,6.5482]
[1722000962944,65.0,179.51,179.45,5.5722]
[1722000963151,65.0,179.51,179.42,6.5482]
[1722000963365,65.0,179.51,179.46,5.572]
[1722000963544,65.0,179.51,179.48,5.5716]
[1722000963545,45.0,179.51,179.48,5.5716]
[1722000963765,45.0,179.52,179.48,5.5713]
[1722000963966,20.0,179.55,179.42,33.4682]
[1722000964150,45.0,179.54,179.42,33.4682]
[1722000964475,20.0,179.57,179.52,5.5703]
[1722000964889,20.0,179.57,179.44,16.5325]
[1722000965046,20.0,179.57,179.54,5.5697]
[1722000965247,20.0,179.61,179.46,1.11402164]
[1722000965494,20.0,179.61,179.58,5.5685]
[1722000965776,20.0,179.63,179.58,5.5685]
[1722000965978,20.0,179.63,179.53,16.1503]
[1722000966852,20.0,179.65,179.54,1.11369599]
[1722000967076,20.0,179.65,179.54,20.0]
[1722000967958,20.0,179.65,179.53,16.1503]
[1722000968281,20.0,179.65,179.54,20.0]
[1722000968751,20.0,179.63,179.54,20.0]
[1722000968950,20.0,179.63,179.53,16.1503]
[1722000969571,40.0,179.59,179.49,21.9028]
[1722000969955,20.0,179.59,179.49,21.9028]
[1722000970154,20.0,179.56,179.49,21.9028]
[1722000970554,20.0,179.56,179.49,6.6291]
[1722000970759,20.0,179.54,179.49,6.6291]
[1722000971277,20.0,179.52,179.44,21.8434]
[1722000971487,20.0,179.51,179.44,6.0447]
[1722000971697,20.0,179.52,179.44,6.0447]
[1722000971855,45.0,179.51,179.44,6.0447]
[1722000972256,65.0,179.51,179.44,6.0447]
[1722000972655,45.0,179.51,179.44,6.0447]
[1722000973162,45.0,179.51,179.47,5.5719]
[1722000973598,20.0,179.49,179.39,22.5144]
[1722000973759,40.0,179.49,179.44,5.5728]
[1722000973958,40.0,179.49,179.45,5.5723]
[1722000974219,20.0,179.49,179.46,5.5721]
[1722000974687,20.0,179.49,179.39,22.5144]
[1722000974688,20.0,179.49,179.45,5.5725]
[1722000975255,20.0,179.49,179.46,5.5722]
[1722000975460,20.0,179.49,179.45,5.5725]
[1722000975661,65.0,179.51,179.47,5.5718]
[1722000975971,65.0,179.51,179.39,22.5144]
[1722000976161,20.0,179.53,179.47,5.5716]
[1722000976362,20.0,179.51,179.46,5.5722]
[1722000976782,20.0,179.51,179.39,22.5144]
[1722000976982,20.0,179.53,179.48,5.5716]
[1722000977400,20.0,179.51,179.39,22.5144]
[1722000977691,20.0,179.51,179.46,5.5722]
[1722000977864,20.0,179.51,179.47,5.5718]
[1722000978267,20.0,179.56,179.51,5.5706]
[1722000978471,20.0,179.56,179.4,21.11446822]
[1722000978472,20.0,179.58,179.53,5.57]
[1722000978868,20.0,179.61,179.55,5.5692]
[1722000979067,20.0,179.61,179.49,22.1479]
[1722000979495,20.0,179.65,179.6,5.5678]
[1722000980002,20.0,179.67,179.51,30.24]
[1722000980198,20.0,179.67,179.52,66.11361305]
[1722000981001,20.0,179.64,179.52,20.0]
[1722000981504,20.0,179.66,179.52,21.11374231]
[1722000981731,20.0,179.66,179.53,45.0]
[1722000982000,20.0,179.68,179.55,6.1729]
[1722000982217,40.0,179.7,179.56,21.11348915]
[1722000982387,20.0,179.66,179.56,20.0]
[1722000982704,20.0,179.68,179.56,20.0]
[1722000984003,45.0,179.67,179.56,20.0]
[1722000985179,20.0,179.7,179.56,20.0]
[1722000985516,20.0,179.68,179.56,20.0]
[1722000986195,45.0,179.69,179.56,20.0]
[1722000986392,45.0,179.69,179.57,15.6707]
[1722000986587,20.0,179.68,179.57,15.6707]
[1722000986789,45.0,179.67,179.57,15.6707]
[1722000986990,20.0,179.66,179.57,15.6707]
[1722000987597,20.0,179.63,179.57,15.6707]
[1722000988313,20.0,179.65,179.57,15.6707]
[1722000988514,45.0,179.64,179.57,15.6707]
[1722000989016,20.0,179.68,179.57,15.6707]
[1722000989227,20.0,179.65,179.57,15.6707]
[1722000990006,20.0,179.7,179.57,15.6707]
[1722000990700,20.0,179.69,179.57,15.6707]
[1722000990901,20.0,179.68,179.57,15.6707]
[1722000991399,20.0,179.7,179.57,15.6707]
[1722000992005,20.0,179.68,179.57,15.6707]
[1722000992401,40.0,179.71,179.57,15.6707]
[1722000992919,45.0,179.7,179.57,15.6707]
[1722000993323,40.0,179.71,179.57,15.6707]
[1722000993615,40.0,179.71,179.58,72.94327976]
[1722000993918,40.0,179.71,179.59,26.486]
[1722000994621,20.0,179.71,179.59,26.486]
[1722000994799,20.0,179.73,179.6,45.0]
[1722000994991,40.0,179.73,179.59,26.486]
[1722000995214,20.0,179.71,179.59,26.486]
[1722000995597,20.0,179.73,179.59,26.486]
[1722000995793,20.0,179.73,179.6,45.0]
[1722000995997,46.83,179.75,179.6,46.11316789]
[1722000995998,66.83,179.75,179.6,46.11316789]
[1722000996199,40.0,179.73,179.6,45.0]
[1722000996403,20.0,179.75,179.61,27.94314556]
[1722000996595,46.83,179.78,179.64,6.2271]
[1722000996807,46.83,179.78,179.64,7.34011955]
[1722000996808,20.0,179.77,179.64,7.34011955]
[1722000997124,20.0,179.78,179.65,1.11301955]
[1722000997487,66.83,179.81,179.65,66.11290921]
[1722000997717,20.0,179.79,179.65,66.11290921]
[1722000997891,40.0,179.79,179.65,66.11290921]
[1722000998214,20.0,179.81,179.67,26.83]
[1722000998415,20.0,179.81,179.69,6.6475]
[1722000998621,20.0,179.81,179.7,15.0303]
[1722000999195,40.0,179.83,179.7,15.0303]
[1722000999394,20.0,179.87,179.77,21.6778]
[1722000999746,20.0,179.89,179.79,26.83]
[1722001000021,20.0,179.89,179.77,21.6778]
[1722001000022,40.0,179.91,179.78,26.83]
[1722001000222,40.0,179.91,179.8,1.11206428]
[1722001000598,40.0,179.91,179.82,6.5681]
[1722001000599,20.0,179.91,179.82,6.5681]
[1722001000900,0.8131797,179.92,179.83,65.0]
[1722001001321,0.8131797,179.92,179.83,20.0]
[1722001001697,0.8131797,179.92,179.82,6.5681]
[1722001002420,30.11,179.89,179.77,6.1332]
[1722001002597,20.0,179.89,179.77,6.1332]
[1722001003037,20.0,179.87,179.77,6.1332]
[1722001003517,45.0,179.86,179.77,6.1332]
[1722001003719,20.0,179.82,179.77,6.1332]
[1722001004030,45.0,179.81,179.77,6.1332]
[1722001004197,20.0,179.8,179.77,6.1332]
[1722001004403,45.0,179.79,179.77,6.1332]
[1722001004628,20.0,179.8,179.71,6.2055]
[1722001004815,45.0,179.79,179.71,6.2055]
[1722001005902,30.11,179.91,179.71,6.2055]
[1722001005903,20.0,179.83,179.71,6.2055]
[1722001006215,45.0,179.82,179.71,6.2055]
[1722001006625,20.0,179.86,179.71,6.2055]
[1722001006798,45.0,179.85,179.72,20.0]
[1722001007003,20.0,179.86,179.72,20.0]
[1722001007211,20.0,179.85,179.72,20.0]
[1722001007416,20.0,179.83,179.71,6.2055]
[1722001007617,20.0,179.81,179.71,6.2055]
[1722001007806,20.0,179.79,179.71,6.2055]
[1722001008933,45.0,179.78,179.71,6.2055]
[1722001009101,20.0,179.82,179.71,6.2055]
[1722001009301,45.0,179.81,179.71,6.2055]
[1722001009623,20.0,179.79,179.71,6.2055]
[1722001009808,20.0,179.82,179.71,6.2055]
[1722001009809,20.0,179.77,179.71,6.2055]
[1722001010007,45.0,179.78,179.71,6.2055]
[1722001010008,20.0,179.75,179.71,6.2055]
[1722001010530,45.0,179.74,179.71,6.2055]
[1722001010909,20.0,179.77,179.71,6.2055]
[1722001011114,45.0,179.76,179.71,6.2055]
[1722001011323,20.0,179.74,179.71,6.2055]
[1722001011705,65.0,179.76,179.71,6.2055]
[1722001011906,20.0,179.82,179.71,6.2055]
[1722001011907,20.0,179.8,179.71,6.2055]
[1722001012114,20.0,179.84,179.71,6.2055]
[1722001012313,30.11,179.88,179.71,6.2055]
[1722001012314,20.0,179.82,179.71,6.2055]
[1722001013323,20.0,179.86,179.72,35.3567]
[1722001013630,20.0,179.82,179.72,35.3567]
[1722001013827,20.0,179.84,179.72,35.3567]
[1722001014030,20.0,179.87,179.72,35.3567]
[1722001014214,20.0,179.85,179.72,35.3567]
[1722001014935,20.0,179.87,179.72,35.3567]
[1722001015128,20.0,179.87,179.73,6.5459]
[1722001015308,20.0,179.9,179.74,65.0]
[1722001015509,20.0,179.88,179.74,65.0]
[1722001015712,20.0,179.86,179.74,65.0]
[1722001015922,20.0,179.89,179.74,65.0]
[1722001016311,20.8131797,179.92,179.75,6.5459]
[1722001016519,20.8131797,179.92,179.78,6.5459]
[1722001016749,20.8131797,179.92,179.79,20.0]
[1722001016936,0.8131797,179.92,179.8,6.5459]
[1722001017212,0.8131797,179.92,179.81,20.0]
[1722001017429,0.8131797,179.92,179.82,45.0]
[1722001017639,0.8131797,179.92,179.83,42.4239]
[1722001021046,0.8131797,179.92,179.84,6.6201]
[1722001021356,0.8131797,179.92,179.85,65.0]
[1722001021653,20.0,180.05,179.87,45.7383]
[1722001021845,20.0,180.05,179.89,6.058]
[1722001022135,20.0,180.05,179.9,20.0]
[1722001022525,20.0,180.03,179.9,20.0]
[1722001022723,20.0,180.02,179.9,20.0]
[1722001022926,20.0,180.04,179.9,20.0]
[1722001024620,20.0,180.06,179.91,6.4236]
[1722001024821,20.0,180.06,179.92,20.0]
[1722001025850,20.0,180.06,179.94,6.0782]
[1722001026034,20.0,180.06,179.95,20.0]
[1722001026536,20.0,180.08,179.95,20.0]
[1722001027057,20.8131797,180.1,179.96,6.3481]
[1722001027252,0.8131797,180.1,179.97,20.0]
[1722001027552,0.8131797,180.1,179.98,6.3467]
[1722001027762,0.8131797,180.1,180.01,6.3467]
[1722001027931,0.8131797,180.1,180.02,20.0]
[1722001029647,20.0,180.19,180.03,6.1929]
[1722001029948,20.0,180.19,180.02,20.0]
[1722001029949,20.0,180.19,180.05,6.0547]
[1722001030132,20.0,180.22,180.05,6.0547]
[1722001030331,20.0,180.22,180.06,20.0]
[1722001030536,30.11,180.23,180.07,6.0547]
[1722001030835,20.0,180.24,180.09,6.0547]
[1722001031059,20.0,180.26,180.09,6.0547]
[1722001031227,20.0,180.24,180.09,6.0547]
[1722001031547,20.0,180.2,180.09,6.0547]
[1722001031755,30.11,180.23,180.1,1.10999866]
[1722001032048,20.0,180.21,180.09,6.0547]
[1722001032239,30.11,180.27,180.09,7.16479622]
[1722001032240,20.0,180.24,180.09,7.16479622]
[1722001032449,20.0,180.22,180.1,1.10995042]
[1722001032649,20.0,180.22,180.09,7.16470974]
[1722001033147,20.0,180.22,180.09,6.0547]
[1722001033331,20.0,180.19,180.09,6.0547]
[1722001033527,20.0,180.18,180.09,6.0547]
[1722001033767,50.11,180.2,180.09,6.0547]
[1722001033937,45.0,180.19,180.09,6.0547]
[1722001035148,65.0,180.19,180.09,6.0547]
[1722001035342,95.11,180.19,180.09,6.0547]
[1722001036348,75.11,180.19,180.09,6.0547]
[1722001036552,30.11,180.15,180.09,6.0547]
[1722001036733,45.0,180.14,180.09,6.0547]
[1722001036931,30.11,180.11,180.09,6.0547]
[1722001037336,45.0,180.1,180.09,6.0547]
[1722001038544,45.0,180.1,180.09,5.0547]
[1722001041747,30.11,180.14,180.09,5.0547]
[1722001042071,20.0,180.19,180.09,5.0547]
[1722001042072,30.11,180.19,180.09,5.0547]
[1722001042967,30.11,180.24,180.1,22.67609072]
[1722001043272,20.0,180.23,180.1,21.566]
[1722001044089,30.11,180.2,180.1,21.566]
[1722001045072,30.11,180.2,180.11,1.11006485]
[1722001045272,7.21431801,180.23,180.11,1.11006485]
[1722001045567,30.11,180.24,180.1,21.566]
[1722001045951,20.0,180.23,180.1,21.566]
[1722001046355,20.0,180.25,180.11,1.11000389]
[1722001046663,62.31642766,180.27,180.11,1.11000389]
[1722001047174,42.31642766,180.27,180.11,1.11000389]
[1722001047381,30.11,180.27,180.12,6.4773]
[1722001047583,30.11,180.27,180.13,21.10958437]
[1722001048163,30.11,180.22,180.13,21.10958437]
[1722001049783,29.11,180.22,180.13,21.10958437]
[1722001050080,45.0,180.21,180.13,21.10958437]
[1722001050249,30.11,180.27,180.14,6.4559]
[1722001050456,30.11,180.27,180.15,1.10958209]
[1722001051680,45.0,180.26,180.15,1.10958209]
[1722001052969,45.0,180.26,180.14,6.4559]
[1722001052970,20.0,180.25,180.14,6.4559]
[1722001053172,30.11,180.21,180.14,6.4559]
[1722001053379,45.0,180.2,180.14,6.4559]
[1722001053890,30.11,180.19,180.14,6.4559]
[1722001054064,45.0,180.18,180.14,6.4559]
[1722001055888,30.11,180.23,180.14,6.4559]
[1722001056078,45.0,180.22,180.14,7.5656559]
[1722001056279,30.11,180.23,180.15,1.10976318]
[1722001056481,30.11,180.27,180.14,7.5655393]
[1722001056792,30.11,180.27,180.15,1.10967738]
[1722001057568,30.11,180.27,180.14,7.5655396]
[1722001057766,30.11,180.27,180.15,1.10970194]
[1722001059369,30.11,180.27,180.17,6.3873]
[1722001059577,30.11,180.27,180.18,1.10953029]
[1722001059779,30.11,180.27,180.17,6.3873]
[1722001059982,30.11,180.27,180.17,7.4969402]
[1722001060289,30.11,180.27,180.17,6.3873]
[1722001060486,30.11,180.27,180.17,7.49680141]
[1722001060786,30.11,180.27,180.18,1.10949482]
[1722001061087,30.11,180.27,180.17,7.49679482]
[1722001061284,30.11,180.27,180.17,7.49683729]
[1722001061672,30.11,180.27,180.17,6.3873]
[1722001062289,30.11,180.27,180.17,7.49691843]
[1722001062484,30.11,180.27,180.18,1.10955497]
[1722001062689,45.0,180.26,180.18,1.10955497]
[1722001062887,45.0,180.26,180.17,7.49677851]
[1722001063268,45.0,180.26,180.18,1.10947891]
[1722001063682,45.0,180.26,180.17,7.4967729]
[1722001063885,45.0,180.26,180.17,7.49682408]
[1722001064192,45.0,180.26,180.18,1.10952744]
[1722001064773,0.8131797,180.28,180.21,6.1129]
[1722001065083,0.8131797,180.28,180.22,1.10920849]
[1722001065267,0.8131797,180.28,180.21,6.1129]
[1722001065781,0.8131797,180.28,180.22,1.10934088]
[1722001066177,0.8131797,180.28,180.21,7.22230713]
[1722001067486,28.9231797,180.31,180.21,7.22230713]
[1722001068376,26.65,180.3,180.21,7.22230713]
[1722001068972,21.3700575,180.27,180.21,7.22230713]
[1722001069178,26.65,180.36,180.21,7.22220677]
[1722001069179,26.65,180.3,180.21,7.22220677]
[1722001070704,26.65,180.3,180.22,1.10920562]
[1722001070875,26.65,180.3,180.23,6.0328]
[1722001071211,26.65,180.3,180.24,1.10910529]
[1722001071577,26.65,180.3,180.23,6.0328]
[1722001071894,40.0,180.41,180.24,1.10923959]
[1722001072092,26.65,180.3,180.24,1.10923959]
[1722001074480,26.65,180.3,180.23,7.14194662]
[1722001074779,26.65,180.3,180.24,1.10915451]
[1722001074993,26.65,180.3,180.23,7.14187476]
[1722001075295,26.65,180.3,180.24,1.10910284]
[1722001076386,26.65,180.27,180.23,6.0328]
[1722001077089,20.0,180.39,180.23,6.0328]
[1722001077289,26.65,180.28,180.23,6.0328]
[1722001079192,45.0,180.27,180.23,6.0328]
[1722001079777,26.65,180.28,180.23,6.0328]
[1722001081206,45.0,180.27,180.23,6.0328]
[1722001081581,26.65,180.25,180.1,1.1093778]
[1722001081785,26.65,180.18,180.11,1.10976069]
[1722001082596,26.65,180.18,180.1,1.10991932]
[1722001082792,26.65,180.18,180.11,1.10999201]
[1722001083188,26.65,180.15,180.09,7.50249061]
[1722001083788,26.65,180.18,180.09,7.50249061]
[1722001084340,26.65,180.23,180.09,7.50249061]
[1722001084815,26.65,180.2,180.1,20.0]
[1722001085012,26.65,180.27,180.09,6.3925]
[1722001085013,26.65,180.17,180.09,6.3925]
[1722001085207,26.65,180.17,180.09,7.50248103]
[1722001085905,26.65,180.2,180.09,7.50248103]
[1722001086513,26.65,180.17,180.09,7.50248103]
[1722001086895,26.65,180.17,180.09,6.3925]
[1722001087203,26.65,180.17,180.1,1.11010082]
[1722001087398,45.0,180.16,180.09,7.50260082]
[1722001087706,26.65,180.17,180.09,7.50260082]
[1722001089810,26.65,180.17,180.09,6.3925]
[1722001090391,26.65,180.14,180.09,6.3925]
[1722001091009,26.65,180.17,180.1,1.11020349]
[1722001091215,20.0,180.26,180.11,1.11000553]
[1722001091216,26.65,180.2,180.11,1.11000553]
[1722001091525,26.65,180.24,180.11,1.11000553]
[1722001092512,46.65,180.24,180.11,1.10988659]
[1722001092717,26.65,180.21,180.09,7.50247635]
[1722001092907,45.0,180.2,180.09,6.3925]
[1722001095796,45.0,180.2,180.03,27.8821454]
[1722001095797,16.3945,180.17,180.04,1.11018373]
[1722001096011,26.65,180.15,180.03,7.53702519]
[1722001096211,26.65,180.15,180.04,1.11042194]
[1722001096425,45.0,180.14,180.04,1.11042194]
[1722001096715,45.0,180.14,180.03,6.4267]
[1722001097332,26.65,180.09,179.98,1.11059855]
[1722001097617,45.0,180.08,179.97,6.0008]
[1722001097824,45.0,180.08,179.97,7.11154049]
[1722001098118,45.0,180.08,179.97,6.0008]
[1722001098703,26.65,180.03,179.94,15.4161]